fUST/lending_fUST_20250808
["ID","MTS","AMOUNT","RATE_DAILY","PERIOD"]
[377889173,1754598652912,-1156.35,0.00024657,2]
[377889174,1754598652922,-460.0,0.00024657,2]
[377889175,1754598652931,-1505.01,0.00024657,2]
[377889176,1754598652943,-537.42,0.00024657,2]
[377889177,1754598652951,-200.0,0.00024658,2]
[377889178,1754598652961,-200.0,0.00024658,15]
[377889179,1754598652972,-151.0,0.00024658,7]
[377889180,1754598652982,-151.0,0.00024658,7]
[377889181,1754598652991,-151.0,0.00024658,7]
[377889182,1754598653000,-151.0,0.00024658,7]
[377889183,1754598653010,-151.0,0.00024658,7]
[377889184,1754598653020,-151.0,0.00024658,7]
[377889185,1754598653030,-151.0,0.00024658,7]
[377889186,1754598653039,-151.0,0.00024658,7]
[377889187,1754598653051,-151.0,0.00024658,7]
[377889188,1754598653061,-218.144474,0.00024658,7]
[377889189,1754598653071,-380.0,0.00024658,2]
[377889190,1754598653080,-500.0,0.00024658,2]
[377889191,1754598653091,-5888.0,0.0002467,2]
[377889192,1754598653100,-500.0,0.00024673,2]
[377889193,1754598653110,-500.0,0.00024673,2]
[377889194,1754598653119,-500.0,0.00024673,2]
[377889195,1754598653128,-500.0,0.00024673,2]
[377889196,1754598653138,-500.0,0.00024673,2]
[377889197,1754598653147,-504.55421228,0.00024673,2]
[377889198,1754598653157,-326.13675322,0.00024673,2]
[377889199,1754598653167,-500.0,0.00024673,2]
[377889200,1754598653176,-500.0,0.00024673,2]
[377889201,1754598653185,-500.0,0.00024673,2]
[377889202,1754598653196,-5888.0,0.00024674,2]
[377889203,1754598653205,-645.3529506,0.00024712,2]
[377889204,1754598653215,-500.0,0.00024712,2]
[377889205,1754598653224,-450.0,0.00024716,2]
[377889206,1754598653233,-2000.0,0.00024716,2]
[377889207,1754598653242,-5888.0,0.00024783,2]
[377889208,1754598653251,-156.0,0.000248,2]
[377889209,1754598653260,-276.6,0.000248,2]
[377889210,1754598653269,-151.0,0.000248,7]
[377889211,1754598653278,-151.0,0.000248,7]
[377889212,1754598653287,-477.935939,0.000248,7]
[377889213,1754598653296,-12441.42107388,0.000248,2]
[377889214,1754598653305,-300.71929134,0.0002482,2]
[377889215,1754598653315,-645.3529506,0.00024849,2]
[377889216,1754598653324,-5888.0,0.00024858,2]
[377889217,1754598653333,-150.0,0.00024873,2]
[377889218,1754598653343,-150.0,0.00024873,2]
[377889219,1754598653353,-408.8,0.00024873,3]
[377889220,1754598653362,-360.0,0.00024883,2]
[377889221,1754598653373,-200.0,0.0002489,2]
[377889222,1754598653382,-50111.11340994,0.000249,2]
[377889225,1754598737539,402.964947,0.00013699,2]
[377889226,1754598737809,402.964947,0.00020187,2]
[377889228,1754598911648,24900.0,0.00020891,2]
[377889233,1754599255647,1157.67936881,0.0002,2]
[377889237,1754599429118,167.031801,0.00021072,2]
[377889238,1754599572951,160.4004305,0.00027823,30]
[377889239,1754599573016,358.7268859,0.00027823,30]
[377889240,1754599573447,293.0794966,0.00027823,30]
[377889241,1754599573815,310.8527547,0.00027823,30]
[377889242,1754599585512,579.259526,0.00027823,30]
[377889243,1754599586716,20000.0,0.00020991,2]
[377889244,1754599612302,783.03843857,0.000189,2]
[377889245,1754599633619,160.4004305,0.00027823,30]
[377889246,1754599633900,293.0794966,0.00027823,30]
[377889247,1754599635244,579.259526,0.00027823,30]
[377889249,1754599693760,293.0794966,0.00027823,30]
[377889250,1754599694255,160.4004305,0.00027823,30]
[377889251,1754599694971,579.259526,0.00027823,30]
[377889252,1754599718448,362.668452,0.00013699,2]
[377889253,1754599718695,362.668452,0.00020187,2]
[377889255,1754599754082,293.0794966,0.00027823,30]
[377889256,1754599754635,483.9946823,0.00027823,30]
[377889257,1754599775188,15478.12506689,0.000199,2]
[377889258,1754599786587,35024.81757814,0.00031948,30]
[377889259,1754599814311,293.0794966,0.00027823,30]
[377889296,1754599832433,-500.0,0.00021654,2]
[377889298,1754599832443,-300.0,0.00021654,2]
[377889300,1754599832452,-49.24541962,0.00021654,2]
[377889304,1754599832487,-486.05013703,0.00021654,2]
[377889306,1754599832501,-13.94986297,0.00021654,2]
[377889308,1754599832511,-455.553926,0.00021654,2]
[377889309,1754599832522,-695.20065438,0.00021654,2]
[377889311,1754599832531,-2282.91617014,0.00021655,2]
[377889389,1754599838385,-518.0270804,0.00021654,2]
[377889390,1754599838395,-212.66827789,0.00021654,2]
[377889391,1754599838406,-13195.20889663,0.00021655,2]
[377889392,1754599838421,-838.0,0.00021914,2]
[377889393,1754599838430,-500.0,0.00021916,2]
[377889394,1754599838439,-500.0,0.00021916,2]
[377889395,1754599838449,-500.0,0.00021916,2]
[377889397,1754599838459,-500.0,0.00021916,2]
[377889399,1754599838469,-500.0,0.00021916,2]
[377889400,1754599838478,-500.0,0.00021916,2]
[377889401,1754599838487,-354.35309961,0.00021916,2]
[377889402,1754599838497,-500.0,0.00021916,2]
[377889403,1754599838506,-500.0,0.00021916,2]
[377889404,1754599838516,-500.0,0.00021916,2]
[377889405,1754599838525,-460.0,0.00021917,2]
[377889406,1754599838535,-460.0,0.00021917,2]
[377889407,1754599838545,-460.0,0.00021917,2]
[377889408,1754599838554,-460.0,0.00021917,2]
[377889409,1754599838563,-460.0,0.00021917,2]
[377889410,1754599838573,-460.0,0.00021917,2]
[377889411,1754599838582,-460.0,0.00021917,2]
[377889412,1754599838592,-460.0,0.00021917,2]
[377889413,1754599838606,-460.0,0.00021917,2]
[377889414,1754599838615,-460.0,0.00021917,2]
[377889415,1754599838625,-460.0,0.00021917,2]
[377889416,1754599838634,-460.0,0.00021917,2]
[377889417,1754599838643,-460.0,0.00021917,2]
[377889418,1754599838653,-460.0,0.00021917,2]
[377889419,1754599838662,-460.0,0.00021917,2]
[377889420,1754599838672,-460.0,0.00021917,2]
[377889421,1754599838681,-460.0,0.00021917,2]
[377889422,1754599838691,-460.0,0.00021917,2]
[377889423,1754599838702,-460.0,0.00021917,2]
[377889424,1754599838711,-460.0,0.00021917,2]
[377889425,1754599838721,-460.0,0.00021917,2]
[377889426,1754599838730,-460.0,0.00021917,2]
[377889427,1754599838740,-460.0,0.00021917,2]
[377889428,1754599838750,-460.0,0.00021917,2]
[377889429,1754599838759,-460.0,0.00021917,2]
[377889430,1754599838769,-460.0,0.00021917,2]
[377889431,1754599838778,-468.44711553,0.00021917,2]
[377889432,1754599838788,-460.0,0.00021917,2]
[377889433,1754599838797,-460.0,0.00021917,2]
[377889434,1754599838807,-724.88,0.00021917,2]
[377889435,1754599838817,-460.0,0.00021917,2]
[377889436,1754599838827,-460.0,0.00021917,2]
[377889437,1754599838836,-460.0,0.00021917,2]
[377889438,1754599838847,-460.0,0.00021917,2]
[377889439,1754599838857,-460.0,0.00021917,2]
[377889440,1754599838867,-460.0,0.00021917,2]
[377889441,1754599838877,-460.0,0.00021917,2]
[377889442,1754599838887,-570.26,0.00021917,2]
[377889443,1754599838897,-460.0,0.00021917,2]
[377889444,1754599838907,-268.11608006,0.00021917,2]
[377889445,1754599838917,-460.0,0.00021917,2]
[377889446,1754599838928,-463.46513897,0.00021917,2]
[377889447,1754599838937,-460.0,0.00021917,2]
[377889448,1754599838947,-460.0,0.00021917,2]
[377889449,1754599838956,-251.09832518,0.00021917,2]
[377889450,1754599838966,-473.73203914,0.00021917,2]
[377889451,1754599838975,-460.0,0.00021917,2]
[377889452,1754599838984,-1579.83,0.00021917,2]
[377889453,1754599838993,-1150.4,0.00021917,2]
[377889454,1754599839003,-460.0,0.00021917,2]
[377889455,1754599839012,-460.0,0.00021917,2]
[377889456,1754599839022,-460.0,0.00021917,2]
[377889457,1754599839031,-460.0,0.00021917,2]
[377889458,1754599839040,-460.0,0.00021917,2]
[377889459,1754599839049,-460.0,0.00021917,2]
[377889460,1754599839059,-460.0,0.00021917,2]
[377889461,1754599839068,-460.0,0.00021917,2]
[377889462,1754599839078,-460.0,0.00021917,2]
[377889463,1754599839087,-460.0,0.00021917,2]
[377889464,1754599839097,-460.0,0.00021917,2]
[377889465,1754599839106,-500.0,0.00021917,2]
[377889466,1754599839116,-460.0,0.00021917,2]
[377889467,1754599839125,-613.74,0.00021917,2]
[377889468,1754599839134,-460.0,0.00021917,2]
[377889469,1754599839144,-460.0,0.00021917,2]
[377889470,1754599839153,-315.56433102,0.00021917,2]
[377889471,1754599839162,-460.0,0.00021917,2]
[377889472,1754599839172,-460.0,0.00021917,2]
[377889473,1754599839181,-460.0,0.00021917,2]
[377889474,1754599839190,-460.0,0.00021917,2]
[377889475,1754599839200,-460.0,0.00021917,2]
[377889476,1754599839209,-460.0,0.00021917,2]
[377889477,1754599839218,-594.27,0.00021917,2]
[377889478,1754599839228,-460.0,0.00021917,2]
[377889479,1754599839237,-460.0,0.00021917,2]
[377889480,1754599839246,-467.03232714,0.00021917,2]
[377889481,1754599839255,-1126.13,0.00021917,2]
[377889482,1754599839265,-460.0,0.00021917,2]
[377889483,1754599839274,-466.77251127,0.00021917,2]
[377889484,1754599839283,-460.0,0.00021917,2]
[377889485,1754599839292,-460.0,0.00021917,2]
[377889486,1754599839302,-1137.79,0.00021917,2]
[377889487,1754599839311,-460.0,0.00021917,2]
[377889488,1754599839321,-753.56,0.00021917,2]
[377889489,1754599839330,-1243.87,0.00021917,2]
[377889490,1754599839339,-460.0,0.00021917,2]
[377889491,1754599839352,-460.0,0.00021917,2]
[377889492,1754599839362,-588.41,0.00021917,2]
[377889493,1754599839371,-460.0,0.00021917,2]
[377889494,1754599839381,-460.0,0.00021917,2]
[377889495,1754599839390,-382.99174988,0.00021917,2]
[377889496,1754599839400,-460.0,0.00021917,2]
[377889497,1754599839410,-460.0,0.00021917,2]
[377889498,1754599839422,-460.0,0.00021917,2]
[377889499,1754599839432,-460.0,0.00021917,2]
[377889500,1754599839441,-460.0,0.00021917,2]
[377889501,1754599839450,-460.0,0.00021917,2]
[377889502,1754599839461,-460.0,0.00021917,2]
[377889503,1754599839471,-460.0,0.00021917,2]
[377889504,1754599839480,-2243.63,0.00021917,2]
[377889505,1754599839489,-460.0,0.00021917,2]
[377889506,1754599839502,-460.0,0.00021917,2]
[377889507,1754599839512,-460.0,0.00021917,2]
[377889508,1754599839521,-612.05,0.00021917,2]
[377889509,1754599839531,-460.0,0.00021917,2]
[377889510,1754599839540,-460.0,0.00021917,2]
[377889511,1754599839549,-566.1,0.00021917,2]
[377889512,1754599839559,-460.0,0.00021917,2]
[377889513,1754599839568,-463.80845036,0.00021917,2]
[377889514,1754599839577,-460.0,0.00021917,2]
[377889515,1754599839587,-460.0,0.00021917,2]
[377889516,1754599839596,-460.0,0.00021917,2]
[377889517,1754599839605,-460.0,0.00021917,2]
[377889518,1754599839614,-460.0,0.00021917,2]
[377889519,1754599839623,-541.52,0.00021917,2]
[377889520,1754599839633,-819.08,0.00021917,2]
[377889521,1754599839642,-834.67,0.00021917,2]
[377889522,1754599839651,-460.0,0.00021917,2]
[377889523,1754599839661,-929.91,0.00021917,2]
[377889524,1754599839671,-1066.05,0.00021917,2]
[377889525,1754599839680,-466.28592273,0.00021917,2]
[377889526,1754599839689,-1080.53,0.00021917,2]
[377889527,1754599839699,-460.0,0.00021917,2]
[377889528,1754599839708,-343.25,0.00022,2]
[377889529,1754599839718,-215.31718835,0.00022091,3]
[377889530,1754599839728,-461.3695942,0.00022091,3]
[377889531,1754599839737,-460.0,0.00022191,2]
[377889532,1754599839748,-460.0,0.00022191,2]
[377889533,1754599839757,-460.0,0.00022191,2]
[377889534,1754599839767,-460.0,0.00022191,2]
[377889535,1754599839776,-460.0,0.00022191,2]
[377889536,1754599839786,-460.0,0.00022191,2]
[377889537,1754599839796,-276.11370016,0.00022191,2]
[377889538,1754599839806,-724.88,0.00022191,2]
[377889539,1754599839815,-570.26,0.00022191,2]
[377889540,1754599839825,-460.0,0.00022191,2]
[377889541,1754599839834,-460.0,0.00022191,2]
[377889542,1754599839844,-460.0,0.00022191,2]
[377889543,1754599839854,-1579.83,0.00022191,2]
[377889544,1754599839863,-1150.4,0.00022191,2]
[377889545,1754599839874,-460.0,0.00022191,2]
[377889546,1754599839883,-613.74,0.00022191,2]
[377889547,1754599839893,-460.0,0.00022191,2]
[377889548,1754599839902,-460.0,0.00022191,2]
[377889549,1754599839912,-460.0,0.00022191,2]
[377889550,1754599839922,-594.27,0.00022191,2]
[377889551,1754599839932,-460.0,0.00022191,2]
[377889552,1754599839942,-1126.13,0.00022191,2]
[377889553,1754599839952,-460.0,0.00022191,2]
[377889554,1754599839961,-460.0,0.00022191,2]
[377889555,1754599839971,-1137.79,0.00022191,2]
[377889556,1754599839980,-753.56,0.00022191,2]
[377889557,1754599839989,-1243.87,0.00022191,2]
[377889558,1754599839998,-460.0,0.00022191,2]
[377889559,1754599840009,-460.0,0.00022191,2]
[377889560,1754599840018,-460.0,0.00022191,2]
[377889561,1754599840028,-460.0,0.00022191,2]
[377889562,1754599840037,-460.0,0.00022191,2]
[377889563,1754599840047,-460.0,0.00022191,2]
[377889564,1754599840056,-460.0,0.00022191,2]
[377889565,1754599840065,-460.0,0.00022191,2]
[377889566,1754599840075,-2243.63,0.00022191,2]
[377889568,1754599840084,-460.0,0.00022191,2]
[377889569,1754599840093,-460.0,0.00022191,2]
[377889570,1754599840103,-612.05,0.00022191,2]
[377889571,1754599840112,-460.0,0.00022191,2]
[377889572,1754599840121,-566.1,0.00022191,2]
[377889573,1754599840130,-460.0,0.00022191,2]
[377889574,1754599840140,-460.0,0.00022191,2]
[377889575,1754599840149,-460.0,0.00022191,2]
[377889576,1754599840158,-501.46,0.00022191,2]
[377889577,1754599840168,-460.0,0.00022191,2]
[377889578,1754599840178,-541.52,0.00022191,2]
[377889580,1754599840187,-819.08,0.00022191,2]
[377889582,1754599840196,-834.67,0.00022191,2]
[377889583,1754599840205,-929.91,0.00022191,2]
[377889584,1754599840214,-1066.05,0.00022191,2]
[377889585,1754599840223,-1080.53,0.00022191,2]
[377889586,1754599840232,-460.0,0.00022191,2]
[377889588,1754599840242,-460.0,0.00022465,2]
[377889590,1754599840253,-460.0,0.00022465,2]
[377889592,1754599840262,-460.0,0.00022465,2]
[377889594,1754599840272,-460.0,0.00022465,2]
[377889596,1754599840281,-460.0,0.00022465,2]
[377889598,1754599840290,-724.88,0.00022465,2]
[377889599,1754599840299,-460.0,0.00022465,2]
[377889601,1754599840308,-570.26,0.00022465,2]
[377889603,1754599840318,-460.0,0.00022465,2]
[377889605,1754599840327,-329.58,0.00022465,2]
[377889607,1754599840336,-1579.83,0.00022465,2]
[377889609,1754599840345,-1150.4,0.00022465,2]
[377889611,1754599840354,-460.0,0.00022465,2]
[377889613,1754599840363,-613.74,0.00022465,2]
[377889615,1754599840372,-460.0,0.00022465,2]
[377889617,1754599840381,-460.0,0.00022465,2]
[377889618,1754599840390,-460.0,0.00022465,2]
[377889620,1754599840399,-594.27,0.00022465,2]
[377889622,1754599840409,-460.0,0.00022465,2]
[377889625,1754599840425,-1126.13,0.00022465,2]
[377889627,1754599840434,-460.0,0.00022465,2]
[377889628,1754599840444,-460.0,0.00022465,2]
[377889630,1754599840453,-1137.79,0.00022465,2]
[377889632,1754599840463,-753.56,0.00022465,2]
[377889634,1754599840472,-1243.87,0.00022465,2]
[377889636,1754599840482,-310.48,0.00022465,2]
[377889638,1754599840493,-460.0,0.00022465,2]
[377889640,1754599840503,-460.0,0.00022465,2]
[377889642,1754599840512,-460.0,0.00022465,2]
[377889644,1754599840522,-460.0,0.00022465,2]
[377889647,1754599840532,-352.94,0.00022465,2]
[377889649,1754599840540,-460.0,0.00022465,2]
[377889650,1754599840549,-460.0,0.00022465,2]
[377889651,1754599840559,-2243.63,0.00022465,2]
[377889652,1754599840568,-460.0,0.00022465,2]
[377889653,1754599840578,-460.0,0.00022465,2]
[377889654,1754599840587,-612.05,0.00022465,2]
[377889655,1754599840597,-460.0,0.00022465,2]
[377889656,1754599840606,-566.1,0.00022465,2]
[377889657,1754599840615,-460.0,0.00022465,2]
[377889658,1754599840624,-460.0,0.00022465,2]
[377889659,1754599840634,-460.0,0.00022465,2]
[377889660,1754599840643,-460.0,0.00022465,2]
[377889661,1754599840653,-541.52,0.00022465,2]
[377889662,1754599840662,-819.08,0.00022465,2]
[377889663,1754599840671,-834.67,0.00022465,2]
[377889664,1754599840681,-929.91,0.00022465,2]
[377889665,1754599840690,-1066.05,0.00022465,2]
[377889666,1754599840699,-1080.53,0.00022465,2]
[377889667,1754599840708,-460.0,0.00022465,2]
[377889668,1754599840717,-500.0,0.0002261,2]
[377889669,1754599840727,-500.0,0.00022638,2]
[377889670,1754599840736,-151.0,0.00022676,2]
[377889671,1754599840745,-151.0,0.00022676,2]
[377889672,1754599840754,-151.0,0.00022676,2]
[377889673,1754599840763,-151.0,0.00022676,2]
[377889674,1754599840772,-151.0,0.00022676,2]
[377889685,1754599840935,-300.0,0.00022676,2]
[377889688,1754599840975,-300.0,0.00022676,2]
[377889690,1754599840985,-151.0,0.00022676,2]
[377889692,1754599840994,-151.0,0.00022676,2]
[377889694,1754599841003,-151.0,0.00022676,2]
[377889696,1754599841013,-151.0,0.00022676,2]
[377889698,1754599841023,-300.0,0.00022676,2]
[377889700,1754599841033,-300.0,0.00022676,2]
[377889702,1754599841044,-300.0,0.00022676,2]
[377889704,1754599841053,-151.0,0.00022676,2]
[377889706,1754599841063,-151.0,0.00022676,2]
[377889708,1754599841073,-300.0,0.00022676,2]
[377889710,1754599841082,-300.0,0.00022676,2]
[377889712,1754599841092,-151.0,0.00022676,2]
[377889714,1754599841102,-300.0,0.00022676,2]
[377889716,1754599841111,-300.0,0.00022676,2]
[377889718,1754599841121,-300.0,0.00022676,2]
[377889720,1754599841131,-300.0,0.00022676,2]
[377889722,1754599841140,-250.0,0.00022711,2]
[377889724,1754599841150,-460.0,0.00022739,2]
[377889726,1754599841160,-460.0,0.00022739,2]
[377889728,1754599841169,-460.0,0.00022739,2]
[377889730,1754599841182,-460.0,0.00022739,2]
[377889732,1754599841193,-460.0,0.00022739,2]
[377889734,1754599841203,-724.88,0.00022739,2]
[377889736,1754599841213,-460.0,0.00022739,2]
[377889738,1754599841222,-570.26,0.00022739,2]
[377889740,1754599841232,-460.0,0.00022739,2]
[377889742,1754599841241,-1579.83,0.00022739,2]
[377889744,1754599841252,-1150.4,0.00022739,2]
[377889746,1754599841261,-460.0,0.00022739,2]
[377889748,1754599841270,-613.74,0.00022739,2]
[377889750,1754599841280,-460.0,0.00022739,2]
[377889752,1754599841288,-460.0,0.00022739,2]
[377889754,1754599841298,-460.0,0.00022739,2]
[377889756,1754599841307,-594.27,0.00022739,2]
[377889758,1754599841316,-460.0,0.00022739,2]
[377889760,1754599841325,-1126.13,0.00022739,2]
[377889761,1754599841335,-460.0,0.00022739,2]
[377889763,1754599841344,-460.0,0.00022739,2]
[377889765,1754599841354,-1137.79,0.00022739,2]
[377889767,1754599841363,-753.56,0.00022739,2]
[377889769,1754599841373,-1243.87,0.00022739,2]
[377889771,1754599841382,-460.0,0.00022739,2]
[377889773,1754599841391,-460.0,0.00022739,2]
[377889775,1754599841400,-460.0,0.00022739,2]
[377889777,1754599841410,-460.0,0.00022739,2]
[377889779,1754599841421,-460.0,0.00022739,2]
[377889781,1754599841431,-460.0,0.00022739,2]
[377889783,1754599841440,-2243.63,0.00022739,2]
[377889785,1754599841450,-460.0,0.00022739,2]
[377889787,1754599841459,-460.0,0.00022739,2]
[377889789,1754599841469,-612.05,0.00022739,2]
[377889791,1754599841478,-460.0,0.00022739,2]
[377889793,1754599841487,-566.1,0.00022739,2]
[377889795,1754599841497,-460.0,0.00022739,2]
[377889797,1754599841506,-460.0,0.00022739,2]
[377889799,1754599841515,-606.7385293,0.00022739,2]
[377889801,1754599841524,-460.0,0.00022739,2]
[377889803,1754599841534,-541.52,0.00022739,2]
[377889805,1754599841543,-819.08,0.00022739,2]
[377889807,1754599841553,-834.67,0.00022739,2]
[377889809,1754599841562,-929.91,0.00022739,2]
[377889811,1754599841571,-1066.05,0.00022739,2]
[377889813,1754599841580,-1080.53,0.00022739,2]
[377889815,1754599841590,-460.0,0.00022739,2]
[377889816,1754599841599,-527.57568145,0.00022964,2]
[377889818,1754599841609,-461.3695942,0.00022964,2]
[377889820,1754599841618,-216.52217562,0.00022964,2]
[377889822,1754599841627,-312.16666667,0.00022964,2]
[377889824,1754599841636,-842.63596909,0.00022964,2]
[377889826,1754599841645,-12660.90439413,0.00022964,2]
[377889828,1754599841654,-160.0,0.00022964,2]
[377889830,1754599841663,-215.31718835,0.00022964,2]
[377889832,1754599841675,-160.0,0.00022964,2]
[377889834,1754599841684,-160.0,0.00022964,2]
[377889836,1754599841694,-231.83071243,0.00022964,2]
[377889838,1754599841704,-216.52217562,0.00023,3]
[377889840,1754599841714,-160.0,0.00023,3]
[377889842,1754599841724,-160.0,0.00023,3]
[377889844,1754599841735,-160.0,0.00023,2]
[377889846,1754599841745,-160.0,0.00023,3]
[377889848,1754599841756,-160.0,0.00023,3]
[377889850,1754599841766,-160.0,0.00023,3]
[377889852,1754599841776,-842.63596909,0.00023,3]
[377889854,1754599841786,-160.0,0.00023,3]
[377889856,1754599841797,-200.0,0.00023011,15]
[377889858,1754599841807,-300.0,0.00023011,15]
[377889860,1754599841818,-460.0,0.00023013,2]
[377889862,1754599841838,-576.04057274,0.00023013,2]
[377889865,1754599841848,-460.0,0.00023013,2]
[377889866,1754599841858,-460.0,0.00023013,2]
[377889867,1754599841869,-445.24433137,0.00023013,2]
[377889868,1754599841879,-724.88,0.00023013,2]
[377889869,1754599841889,-460.0,0.00023013,2]
[377889870,1754599841899,-348.54957414,0.00023013,2]
[377889872,1754599842195,-460.0,0.00021917,2]
[377889873,1754599842204,-312.16666667,0.00023,3]
[377889874,1754599842214,-231.83071243,0.00023,3]
[377889875,1754599842224,-221.71042586,0.00023013,2]
[377889876,1754599842234,-460.0,0.00023013,2]
[377889877,1754599842243,-1579.83,0.00023013,2]
[377889878,1754599842252,-1150.4,0.00023013,2]
[377889879,1754599842262,-613.74,0.00023013,2]
[377889880,1754599842271,-460.0,0.00023013,2]
[377889881,1754599842281,-460.0,0.00023013,2]
[377889882,1754599842291,-460.0,0.00023013,2]
[377889883,1754599842300,-594.27,0.00023013,2]
[377889884,1754599842309,-460.0,0.00023013,2]
[377889885,1754599842318,-1049.10887493,0.00023013,2]
[377889886,1754599842330,-77.02112507,0.00023013,2]
[377889887,1754599842339,-460.0,0.00023013,2]
[377889888,1754599842349,-460.0,0.00023013,2]
[377889889,1754599842358,-1137.79,0.00023013,2]
[377889890,1754599842368,-753.56,0.00023013,2]
[377889891,1754599842381,-1243.87,0.00023013,2]
[377889892,1754599842391,-460.0,0.00023013,2]
[377889893,1754599842400,-460.0,0.00023013,2]
[377889894,1754599842410,-460.0,0.00023013,2]
[377889895,1754599842421,-460.0,0.00023013,2]
[377889896,1754599842432,-460.0,0.00023013,2]
[377889897,1754599842441,-460.0,0.00023013,2]
[377889898,1754599842451,-2243.63,0.00023013,2]
[377889899,1754599842460,-460.0,0.00023013,2]
[377889900,1754599842470,-460.0,0.00023013,2]
[377889901,1754599842479,-612.05,0.00023013,2]
[377889902,1754599842489,-460.0,0.00023013,2]
[377889903,1754599842498,-566.1,0.00023013,2]
[377889904,1754599842508,-460.0,0.00023013,2]
[377889905,1754599842518,-460.0,0.00023013,2]
[377889906,1754599842527,-460.0,0.00023013,2]
[377889907,1754599842536,-541.52,0.00023013,2]
[377889908,1754599842545,-819.08,0.00023013,2]
[377889909,1754599842555,-834.67,0.00023013,2]
[377889910,1754599842564,-929.91,0.00023013,2]
[377889911,1754599842574,-1066.05,0.00023013,2]
[377889912,1754599842583,-347.73687493,0.00023013,2]
[377890281,1754599874443,293.0794966,0.00027823,30]
[377890284,1754599901894,24900.0,0.00020999,2]
[377890287,1754599931015,14457.90798651,0.000199,2]
[377890289,1754599935542,293.0794966,0.00027823,30]
[377890293,1754599993383,293.0794966,0.00027823,30]
[377890294,1754599996620,13975.97772009,0.000199,2]
[377890296,1754600054475,222.2596681,0.00027823,30]
[377890299,1754600177079,13505.12951554,0.000199,2]
[377890302,1754600365180,13054.95853165,0.000199,2]
[377890303,1754600440343,167.031801,0.00020761,2]
[377890304,1754600523803,13892.69485454,0.000199,2]
[377890305,1754600557121,400.0,0.0003013,120]
[377890306,1754600643663,326.401606,0.00013699,2]
[377890307,1754600643918,326.401606,0.00020187,2]
[377890311,1754600684842,13425.45538859,0.000199,2]
[377890314,1754600794685,302.69733596,0.00019801,2]
[377890315,1754600794919,454.04600394,0.00019999,4]
[377890316,1754600794989,454.04600394,0.00020197,4]
[377890317,1754600795611,434.8679478,0.00020395,4]
[377890318,1754600818299,522.02562572,0.000189,2]
[377890319,1754600838640,12977.94020898,0.000199,2]
[377890320,1754600889763,24900.0,0.00020745,2]
[377890321,1754600959851,199.52152484,0.0002,2]
[377890326,1754601004637,12955.99646672,0.000199,2]
[377890370,1754601032638,-300.0,0.00021653,2]
[377890372,1754601032648,-300.0,0.00021653,2]
[377890374,1754601032657,-300.0,0.00021653,2]
[377890376,1754601032666,-1200.0,0.00021654,2]
[377890378,1754601032676,-1200.0,0.00021654,2]
[377890379,1754601032684,-3649.63100584,0.00021655,2]